[Event "SWE-ch 65 2019"]
[Site "Eskilstuna"]
[Date "2019.07.08"]
[Round "3.4"]
[White "Segerstrom, Tore"]
[Black "Enqvist, Gosta"]
[Result "1-0"]
[ECO "B58"]
[WhiteElo "1797"]
[BlackElo "2050"]
[Annotator "NA"]
[PlyCount "93"]
[EventDate "2019.07.06"]
[EventType "tourn"]
[EventCountry "SWE"]
[SourceTitle "playchess.com"]
[Source "ChessBase"]
[SourceQuality "1"]
[TimeControl "40/5400+30:1800+30"]

1. e4 {[%emt 0:00:00]} c5 {[%emt 0:00:00]} 2. Nf3 {[%emt 0:00:00]} d6 {[%emt 0:00:00]} 3. d4 {[%emt 0:00:00]} cxd4 {[%emt 0:00:01]} 4. Nxd4 {[%emt 0:00:00]} Nf6 {[%emt 0:00:07]} 5. Nc3 {[%emt 0:00:00]} a6 {[%emt 0:00:15]} 6. Be2 {[%emt 0:00:38]} e5 {[%emt 0:00:21]} 7. Nf3 {[%emt 0:00:31]} Be7 {[%emt 0:00:22]} 8. O-O {[%emt 0:00:18]} O-O {[%emt 0:00:10]} 9. h3 {[%emt 0:01:00]} Nc6 {[%emt 0:00:18]} 10. Be3 {[%emt 0:00:20]} b5 {[%emt 0:01:07]} 11. a3 {[%emt 0:00:11]} h6 {[%emt 0:02:46]} 12. Qd2 {[%emt 0:00:50]} Be6 {[%emt 0:02:37]} 13. Rfd1 {[%emt 0:01:13]} Kh7 {[%emt 0:03:04]} 14. Kh2 {[%emt 0:02:18]} Qc8 {[%emt 0:09:39]} 15. Ne1 {[%emt 0:15:57]} Rd8 {[%emt 0:04:41]} 16. Qd3 {[%emt 0:05:56]} Bc4 {[%emt 0:01:58]} 17. Qd2 {[%emt 0:00:16]} Bxe2 {[%emt 0:10:30]} 18. Qxe2 {[%emt 0:00:39]} Na5 {[%emt 0:01:27]} 19. Bb6 {[%emt 0:02:52]} Nc4 {[%emt 0:01:10]} 20. Bxd8 {[%emt 0:00:14]} Qxd8 {[%emt 0:00:05]} 21. b3 {[%emt 0:00:41]} Nb6 {[%emt 0:00:06]} 22. a4 {[%emt 0:06:52]} b4 {[%emt 0:00:28]} 23. Na2 {[%emt 0:01:01]} a5 {[%emt 0:00:54]} 24. c3 {[%emt 0:00:37]} d5 {[%emt 0:01:21]} 25. exd5 {[%emt 0:00:34]} Qc7 {[%emt 0:00:40]} 26. c4 {[%emt 0:04:07]} Nbd7 {[%emt 0:01:07]} 27. Kh1 {[%emt 0:00:42]} Nc5 {[%emt 0:00:21]} 28. Nc1 {[%emt 0:00:49]} e4 {[%emt 0:00:23]} 29. Nc2 {[%emt 0:03:09]} Qe5 {[%emt 0:04:10]} 30. Rb1 {[%emt 0:00:46]} Bd6 {[%emt 0:00:09]} 31. g3 {[%emt 0:00:17]} h5 {[%emt 0:01:33]} 32. Ne3 {[%emt 0:01:07]} h4 {[%emt 0:04:19]} 33. Ng4 {[%emt 0:02:28]} Nxg4 {[%emt 0:00:31]} 34. Qxg4 {[%emt 0:00:09]} hxg3 {[%emt 0:01:24]} 35. fxg3 {[%emt 0:00:30]} f5 {[%emt 0:02:08]} 36. Qf4 {[%emt 0:02:24]} Qf6 {[%emt 0:01:17]} 37. Qh4+ {[%emt 0:00:12]} Qxh4 {[%emt 0:00:07]} 38. gxh4 {[%emt 0:00:09]} f4 {[%emt 0:01:24]} 39. Ne2 {[%emt 0:04:55]} Nd3 {[%emt 0:02:04]} 40. Rf1 {[%emt 0:01:21]} f3 {[%emt 0:06:13]} 41. Nd4 {[%emt 0:32:55]} Be5 {[%emt 0:41:47]} 42. Ne6 {[%emt 0:03:19]} Kh6 {[%emt 0:00:47]} 43. Ng5 {[%emt 0:01:55]} Rf8 {[%emt 0:01:20]} 44. Nxe4 {[%emt 0:00:43]} Rf4 {[%emt 0:00:30]} 45. Nf2 {[%emt 0:06:31]} Rd4 {[%emt 0:00:45]} 46. Nxd3 {[%emt 0:00:48]} Rxd3 {[%emt 0:00:07]} 47. Rbd1 {[%emt 0:01:47]} 1-0

[Event "SWE-ch 65 2019"]
[Site "Eskilstuna"]
[Date "2019.07.09"]
[Round "4.1"]
[White "Westin, Ake"]
[Black "Bellon Lopez, Juan Manuel"]
[Result "0-1"]
[ECO "A03"]
[WhiteElo "1975"]
[BlackElo "2343"]
[Annotator "NA"]
[PlyCount "52"]
[EventDate "2019.07.06"]
[EventType "tourn"]
[EventCountry "SWE"]
[SourceTitle "playchess.com"]
[Source "ChessBase"]
[SourceQuality "1"]
[TimeControl "40/5400+30:1800+30"]

1. f4 {[%emt 0:00:00]} d5 {[%emt 0:00:00]} 2. Nf3 {[%emt 0:00:14]} Nf6 {[%emt 0:00:00]} 3. e3 {[%emt 0:00:32]} g6 {[%emt 0:00:44]} 4. Be2 {[%emt 0:01:26]} Bg7 {[%emt 0:00:08]} 5. O-O {[%emt 0:00:41]} O-O {[%emt 0:00:21]} 6. d3 {[%emt 0:00:36]} c5 {[%emt 0:00:51]} 7. Nc3 {[%emt 0:02:01]} d4 {[%emt 0:00:58]} 8. Ne4 {[%emt 0:00:25]} Nd5 {[%emt 0:00:16]} 9. Nxc5 {[%emt 0:01:01]} dxe3 {[%emt 0:00:07]} 10. d4 {[%emt 0:01:56]} Nxf4 {[%emt 0:00:47]} 11. Bxe3 {[%emt 0:00:48]} Nxe2+ {[%emt 0:00:32]} 12. Qxe2 {[%emt 0:00:17]} Nc6 {[%emt 0:00:12]} 13. c3 {[%emt 0:09:56]} b6 {[%emt 0:00:07]} 14. Nb3 {[%emt 0:07:49]} a5 {[%emt 0:11:10]} 15. Qc4 {[%emt 0:08:07]} Qd6 {[%emt 0:07:03]} 16. d5 {[%emt 0:12:44]} Ne5 {[%emt 0:00:05]} 17. Nxe5 {[%emt 0:01:14]} Ba6 {[%emt 0:07:35]} 18. Qc6 {[%emt 0:02:29]} Bxe5 {[%emt 0:18:03]} 19. Qxd6 {[%emt 0:01:22]} exd6 {[%emt 0:00:05]} 20. Rfd1 {[%emt 0:03:46]} a4 {[%emt 0:07:05]} 21. Nd4 {[%emt 0:02:25]} Rfe8 {[%emt 0:00:05]} 22. Nc2 {[%emt 0:04:20]} a3 {[%emt 0:05:07]} 23. bxa3 {[%emt 0:07:48]} Bxc3 {[%emt 0:00:38]} 24. Rab1 {[%emt 0:00:10]} Be2 {[%emt 0:00:52]} 25. Rdc1 {[%emt 0:00:43]} Rac8 {[%emt 0:13:15]} 26. Kf2 {[%emt 0:04:52]} Bd3 {[%emt 0:01:55]} 0-1

[Event "SWE-ch 65 2019"]
[Site "Eskilstuna"]
[Date "2019.07.09"]
[Round "4.2"]
[White "Dolata, Henryk"]
[Black "Nilsson, Christer"]
[Result "1-0"]
[ECO "C00"]
[WhiteElo "2061"]
[BlackElo "1956"]
[Annotator "NA"]
[PlyCount "96"]
[EventDate "2019.07.06"]
[EventType "tourn"]
[EventCountry "SWE"]
[SourceTitle "playchess.com"]
[Source "ChessBase"]
[SourceQuality "1"]
[TimeControl "40/5400+30:1800+30"]

1. e4 {[%emt 0:00:00]} e6 {[%emt 0:00:00]} 2. b3 {[%emt 0:00:00]} d5 {[%emt 0:00:15]} 3. Bb2 {[%emt 0:00:06]} dxe4 {[%emt 0:00:40]} 4. Nc3 {[%emt 0:00:10]} Nf6 {[%emt 0:00:35]} 5. g4 {[%emt 0:00:15]} Be7 {[%emt 0:01:45]} 6. g5 {[%emt 0:13:56]} Nd5 {[%emt 0:04:14]} 7. Nxe4 {[%emt 0:02:52]} Bxg5 {[%emt 0:05:13]} 8. Bxg7 {[%emt 0:02:18]} Rg8 {[%emt 0:00:26]} 9. Bb2 {[%emt 0:00:21]} Nd7 {[%emt 0:16:36]} 10. Nh3 {[%emt 0:15:08]} Bh6 {[%emt 0:04:18]} 11. Qh5 {[%emt 0:06:43]} Rg6 {[%emt 0:01:35]} 12. O-O-O {[%emt 0:01:19]} N7f6 {[%emt 0:08:59]} 13. Nxf6+ {[%emt 0:06:18]} Nxf6 {[%emt 0:00:12]} 14. Qh4 {[%emt 0:17:48]} Nd5 {[%emt 0:03:10]} 15. Qxd8+ {[%emt 0:13:57]} Kxd8 {[%emt 0:00:07]} 16. Bd3 {[%emt 0:02:26]} f5 {[%emt 0:00:51]} 17. Rhg1 {[%emt 0:01:56]} Ke7 {[%emt 0:05:21]} 18. Be2 {[%emt 0:02:36]} Nf6 {[%emt 0:03:32]} 19. Be5 {[%emt 0:05:05]} c6 {[%emt 0:00:32]} 20. Nf4 {[%emt 0:00:21]} Bxf4 {[%emt 0:00:33]} 21. Bxf4 {[%emt 0:00:04]} Bd7 {[%emt 0:05:06]} 22. f3 {[%emt 0:02:41]} Kf7 {[%emt 0:02:31]} 23. c4 {[%emt 0:00:36]} c5 {[%emt 0:05:55]} 24. Be3 {[%emt 0:00:30]} b6 {[%emt 0:00:19]} 25. d4 {[%emt 0:00:15]} cxd4 {[%emt 0:01:12]} 26. Bxd4 {[%emt 0:00:03]} Bc6 {[%emt 0:00:58]} 27. Kb2 {[%emt 0:00:51]} Rag8 {[%emt 0:05:35]} 28. Rxg6 {[%emt 0:01:42]} hxg6 {[%emt 0:02:36]} 29. a4 {[%emt 0:01:30]} Nd7 {[%emt 0:04:05]} 30. a5 {[%emt 0:01:38]} e5 {[%emt 0:02:15]} 31. Bg1 {[%emt 0:00:13]} g5 {[%emt 0:03:00]} 32. c5 {[%emt 0:01:07]} b5 {[%emt 0:02:41]} 33. Rd6 {[%emt 0:00:28]} Rg6 {[%emt 0:00:18]} 34. Rxc6 {[%emt 0:01:01]} Rxc6 {[%emt 0:01:02]} 35. Bxb5 {[%emt 0:00:01]} Nb8 {[%emt 0:02:25]} 36. Bxc6 {[%emt 0:00:45]} Nxc6 {[%emt 0:00:06]} 37. a6 {[%emt 0:00:54]} Ke6 {[%emt 0:01:51]} 38. Kc3 {[%emt 0:00:09]} Nb8 {[%emt 0:00:56]} 39. Kc4 {[%emt 0:00:16]} Nxa6 {[%emt 0:01:00]} 40. b4 {[%emt 0:00:51]} g4 {[%emt 0:04:19]} 41. fxg4 {[%emt 0:01:27]} f4 {[%emt 0:00:19]} 42. b5 {[%emt 0:02:15]} Nc7 {[%emt 0:01:52]} 43. c6 {[%emt 0:01:23]} e4 {[%emt 0:01:18]} 44. Bxa7 {[%emt 0:04:12]} e3 {[%emt 0:00:38]} 45. b6 {[%emt 0:05:46]} Na6 {[%emt 0:02:35]} 46. Kd3 {[%emt 0:05:17]} Nb4+ {[%emt 0:01:28]} 47. Ke2 {[%emt 0:00:10]} Nxc6 {[%emt 0:00:43]} 48. b7 {[%emt 0:00:49]} Kd5 {[%emt 0:00:49]} 1-0

[Event "SWE-ch 65 2019"]
[Site "Eskilstuna"]
[Date "2019.07.09"]
[Round "4.3"]
[White "Alquist, Erik"]
[Black "Segerstrom, Tore"]
[Result "1-0"]
[ECO "C97"]
[WhiteElo "1976"]
[BlackElo "1797"]
[Annotator "NA"]
[PlyCount "63"]
[EventDate "2019.07.06"]
[EventType "tourn"]
[EventCountry "SWE"]
[SourceTitle "playchess.com"]
[Source "ChessBase"]
[SourceQuality "1"]
[TimeControl "40/5400+30:1800+30"]

1. e4 {[%emt 0:00:00]} e5 {[%emt 0:00:00]} 2. Nf3 {[%emt 0:00:00]} Nc6 {[%emt 0:00:00]} 3. Bb5 {[%emt 0:00:00]} a6 {[%emt 0:00:00]} 4. Ba4 {[%emt 0:00:00]} Nf6 {[%emt 0:00:00]} 5. O-O {[%emt 0:00:03]} Be7 {[%emt 0:00:09]} 6. Re1 {[%emt 0:00:40]} b5 {[%emt 0:00:33]} 7. Bb3 {[%emt 0:00:00]} d6 {[%emt 0:04:28]} 8. c3 {[%emt 0:00:03]} Na5 {[%emt 0:00:00]} 9. Bc2 {[%emt 0:00:09]} c5 {[%emt 0:00:00]} 10. h3 {[%emt 0:00:41]} O-O {[%emt 0:00:00]} 11. d4 {[%emt 0:00:21]} Qc7 {[%emt 0:00:32]} 12. Nbd2 {[%emt 0:00:11]} Bd7 {[%emt 0:01:46]} 13. Nf1 {[%emt 0:01:06]} Rac8 {[%emt 0:03:22]} 14. Re2 {[%emt 0:07:42]} b4 {[%emt 0:02:43]} 15. cxb4 {[%emt 0:09:27]} cxb4 {[%emt 0:01:18]} 16. Bd3 {[%emt 0:01:18]} Ra8 {[%emt 0:07:35]} 17. Rc2 {[%emt 0:10:27]} Qb8 {[%emt 0:00:20]} 18. b3 {[%emt 0:01:00]} Bb5 {[%emt 0:07:37]} 19. Bb2 {[%emt 0:02:05]} Nd7 {[%emt 0:05:42]} 20. Rac1 {[%emt 0:02:24]} exd4 {[%emt 0:09:22]} 21. Nxd4 {[%emt 0:02:35]} Bxd3 {[%emt 0:00:18]} 22. Qxd3 {[%emt 0:00:21]} Nc5 {[%emt 0:00:34]} 23. Qf3 {[%emt 0:03:58]} Bf6 {[%emt 0:07:17]} 24. Ng3 {[%emt 0:01:48]} Qb7 {[%emt 0:01:25]} 25. Qg4 {[%emt 0:11:24]} Nd3 {[%emt 0:04:30]} 26. Nh5 {[%emt 0:01:04]} Bxd4 {[%emt 0:11:09]} 27. Bxd4 {[%emt 0:00:13]} f5 {[%emt 0:00:12]} 28. exf5 {[%emt 0:02:00]} Nxc1 {[%emt 0:00:55]} 29. Nxg7 {[%emt 0:01:09]} Kf7 {[%emt 0:02:01]} 30. Ne6 {[%emt 0:07:13]} Ke7 {[%emt 0:15:59]} 31. Qg7+ {[%emt 0:04:06]} Rf7 {[%emt 0:01:19]} 32. Bf6+ {[%emt 0:00:24]} 1-0

[Event "SWE-ch 65 2019"]
[Site "Eskilstuna"]
[Date "2019.07.09"]
[Round "4.4"]
[White "Wademark, Helge"]
[Black "Salholm, Soren"]
[Result "1-0"]
[ECO "C58"]
[WhiteElo "2002"]
[BlackElo "1875"]
[Annotator "NA"]
[PlyCount "67"]
[EventDate "2019.07.06"]
[EventType "tourn"]
[EventCountry "SWE"]
[SourceTitle "playchess.com"]
[Source "ChessBase"]
[SourceQuality "1"]
[TimeControl "40/5400+30:1800+30"]

1. e4 {[%emt 0:01:12]} e5 {[%emt 0:00:27]} 2. Nf3 {[%emt 0:00:04]} Nc6 {[%emt 0:00:10]} 3. Bc4 {[%emt 0:00:13]} Nf6 {[%emt 0:00:42]} 4. Ng5 {[%emt 0:00:51]} d5 {[%emt 0:01:13]} 5. exd5 {[%emt 0:00:04]} Na5 {[%emt 0:01:11]} 6. d3 {[%emt 0:00:32]} Nxc4 {[%emt 0:03:38]} 7. dxc4 {[%emt 0:00:19]} h6 {[%emt 0:00:58]} 8. Nf3 {[%emt 0:00:06]} Bd6 {[%emt 0:07:35]} 9. h3 {[%emt 0:02:23]} O-O {[%emt 0:01:10]} 10. Be3 {[%emt 0:00:45]} Nd7 {[%emt 0:02:18]} 11. Nc3 {[%emt 0:03:25]} f5 {[%emt 0:06:55]} 12. Nb5 {[%emt 0:09:55]} f4 {[%emt 0:04:48]} 13. Nxd6 {[%emt 0:00:59]} fxe3 {[%emt 0:04:18]} 14. Ne4 {[%emt 0:06:59]} Nf6 {[%emt 0:11:20]} 15. Qd3 {[%emt 0:09:42]} Nxe4 {[%emt 0:07:11]} 16. Qxe4 {[%emt 0:00:52]} exf2+ {[%emt 0:00:29]} 17. Kxf2 {[%emt 0:03:22]} Bd7 {[%emt 0:23:11]} 18. Rhe1 {[%emt 0:02:52]} Rf5 {[%emt 0:04:23]} 19. Kg1 {[%emt 0:02:42]} Qf8 {[%emt 0:04:43]} 20. Nxe5 {[%emt 0:03:30]} Be8 {[%emt 0:04:12]} 21. Rf1 {[%emt 0:02:56]} Rxf1+ {[%emt 0:00:11]} 22. Rxf1 {[%emt 0:00:12]} Qe7 {[%emt 0:00:09]} 23. Qd4 {[%emt 0:02:55]} a5 {[%emt 0:01:03]} 24. c5 {[%emt 0:01:43]} Rd8 {[%emt 0:01:16]} 25. c4 {[%emt 0:00:15]} Bh5 {[%emt 0:02:09]} 26. c6 {[%emt 0:02:57]} b6 {[%emt 0:01:00]} 27. Nd7 {[%emt 0:02:49]} Be8 {[%emt 0:01:00]} 28. Rf8+ {[%emt 0:09:39]} Kh7 {[%emt 0:01:11]} 29. Qe5 {[%emt 0:02:54]} Rxd7 {[%emt 0:01:37]} 30. Rxe8 {[%emt 0:00:15]} Qc5+ {[%emt 0:01:10]} 31. Kh2 {[%emt 0:01:30]} Rf7 {[%emt 0:00:25]} 32. Qe4+ {[%emt 0:00:55]} g6 {[%emt 0:00:17]} 33. Qe5 {[%emt 0:00:35]} Rg7 {[%emt 0:00:27]} 34. Rd8 {[%emt 0:00:31]} 1-0

[Event "SWE-ch 65 2019"]
[Site "Eskilstuna"]
[Date "2019.07.10"]
[Round "5.1"]
[White "Bellon Lopez, Juan Manuel"]
[Black "Dolata, Henryk"]
[Result "1-0"]
[ECO "D02"]
[WhiteElo "2343"]
[BlackElo "2061"]
[Annotator "NA"]
[PlyCount "199"]
[EventDate "2019.07.06"]
[EventType "tourn"]
[EventCountry "SWE"]
[SourceTitle "playchess.com"]
[Source "ChessBase"]
[SourceQuality "1"]
[TimeControl "40/5400+30:1800+30"]

1. d4 {[%emt 0:00:00]} e6 {[%emt 0:00:00]} 2. Nf3 {[%emt 0:00:00]} d5 {[%emt 0:00:07]} 3. Bf4 {[%emt 0:00:00]} Nf6 {[%emt 0:01:19]} 4. e3 {[%emt 0:00:00]} c5 {[%emt 0:00:46]} 5. c3 {[%emt 0:00:00]} Nc6 {[%emt 0:02:26]} 6. Nbd2 {[%emt 0:01:47]} Nh5 {[%emt 0:25:12]} 7. Bg5 {[%emt 0:02:59]} Be7 {[%emt 0:00:27]} 8. Bxe7 {[%emt 0:02:06]} Qxe7 {[%emt 0:00:18]} 9. Ne5 {[%emt 0:03:47]} Nf6 {[%emt 0:02:27]} 10. f4 {[%emt 0:03:08]} g6 {[%emt 0:09:56]} 11. a4 {[%emt 0:19:50]} a6 {[%emt 0:13:32]} 12. Bd3 {[%emt 0:08:15]} Nxe5 {[%emt 0:12:58]} 13. fxe5 {[%emt 0:01:29]} Nd7 {[%emt 0:00:01]} 14. O-O {[%emt 0:05:58]} O-O {[%emt 0:01:50]} 15. Qg4 {[%emt 0:05:11]} f5 {[%emt 0:04:29]} 16. exf6 {[%emt 0:03:12]} Nxf6 {[%emt 0:04:30]} 17. Qg5 {[%emt 0:00:46]} cxd4 {[%emt 0:00:30]} 18. exd4 {[%emt 0:00:10]} Bd7 {[%emt 0:00:12]} 19. Nf3 {[%emt 0:03:28]} Rae8 {[%emt 0:02:08]} 20. Ne5 {[%emt 0:01:20]} Bc8 {[%emt 0:02:41]} 21. h4 {[%emt 0:08:44]} Nd7 {[%emt 0:04:37]} 22. Rxf8+ {[%emt 0:03:19]} Nxf8 {[%emt 0:00:27]} 23. Qg3 {[%emt 0:03:48]} Qg7 {[%emt 0:02:30]} 24. Rf1 {[%emt 0:01:17]} Re7 {[%emt 0:00:36]} 25. Qg5 {[%emt 0:07:56]} Bd7 {[%emt 0:03:51]} 26. a5 {[%emt 0:03:48]} Be8 {[%emt 0:00:25]} 27. Ng4 {[%emt 0:00:56]} Nd7 {[%emt 0:01:26]} 28. Bc2 {[%emt 0:01:48]} Nf8 {[%emt 0:02:51]} 29. Qf4 {[%emt 0:01:50]} Bd7 {[%emt 0:01:21]} 30. Nh6+ {[%emt 0:00:57]} Kh8 {[%emt 0:00:01]} 31. Qxf8+ {[%emt 0:00:34]} Qxf8 {[%emt 0:00:02]} 32. Rxf8+ {[%emt 0:00:05]} Kg7 {[%emt 0:00:08]} 33. Rg8+ {[%emt 0:02:14]} Kxh6 {[%emt 0:00:04]} 34. g4 {[%emt 0:00:00]} e5 {[%emt 0:02:08]} 35. Bd1 {[%emt 0:01:26]} Bxg4 {[%emt 0:00:15]} 36. Bxg4 {[%emt 0:00:05]} exd4 {[%emt 0:00:14]} 37. Bf3 {[%emt 0:02:16]} dxc3 {[%emt 0:00:50]} 38. bxc3 {[%emt 0:00:03]} Re3 {[%emt 0:00:44]} 39. Kf2 {[%emt 0:00:02]} Rxc3 {[%emt 0:00:01]} 40. Rd8 {[%emt 0:00:01]} Rb3 {[%emt 0:01:06]} 41. Rxd5 {[%emt 0:30:22]} b6 {[%emt 0:30:06]} 42. Kg3 {[%emt 0:01:20]} Rb4 {[%emt 0:00:00]} 43. axb6 {[%emt 0:00:00]} Rxb6 {[%emt 0:00:00]} 44. Rd7 {[%emt 0:00:00]} a5 {[%emt 0:00:00]} 45. Ra7 {[%emt 0:00:00]} Rb5 {[%emt 0:00:00]} 46. Be4 {[%emt 0:00:00]} Rc5 {[%emt 0:00:00]} 47. Rd7 {[%emt 0:00:00]} Rb5 {[%emt 0:00:00]} 48. Bd5 {[%emt 0:00:00]} Rb8 {[%emt 0:00:00]} 49. Ra7 {[%emt 0:00:00]} Rd8 {[%emt 0:00:00]} 50. Rxa5 {[%emt 0:00:00]} Rd7 {[%emt 0:00:33]} 51. Be4 {[%emt 0:00:00]} Re7 {[%emt 0:01:31]} 52. Kf4 {[%emt 0:00:00]} Rf7+ {[%emt 0:01:45]} 53. Kg4 {[%emt 0:00:00]} Re7 {[%emt 0:00:15]} 54. Bf3 {[%emt 0:00:00]} Rc7 {[%emt 0:00:44]} 55. Bd5 {[%emt 0:00:00]} Rd7 {[%emt 0:00:27]} 56. Kf4 {[%emt 0:00:00]} Re7 {[%emt 0:00:14]} 57. Ra4 {[%emt 0:00:00]} Re1 {[%emt 0:01:39]} 58. Ra7 {[%emt 0:00:00]} Re8 {[%emt 0:00:13]} 59. Rd7 {[%emt 0:00:00]} Rb8 {[%emt 0:00:26]} 60. Ke5 {[%emt 0:00:00]} Rf8 {[%emt 0:01:27]} 61. Be6 {[%emt 0:00:00]} Rb8 {[%emt 0:00:19]} 62. Rc7 {[%emt 0:00:00]} Rb4 {[%emt 0:01:01]} 63. Bc4 {[%emt 0:00:00]} Rb8 {[%emt 0:00:05]} 64. Kf6 {[%emt 0:00:00]} Rd8 {[%emt 0:00:34]} 65. Bb3 {[%emt 0:01:27]} Rd4 {[%emt 0:01:09]} 66. h5 {[%emt 0:01:30]} Rf4+ {[%emt 0:00:17]} 67. Ke5 {[%emt 0:00:12]} Rf5+ {[%emt 0:00:02]} 68. Ke4 {[%emt 0:00:33]} Rxh5 {[%emt 0:00:49]} 69. Bg8 {[%emt 0:00:01]} Rf5 {[%emt 0:00:04]} 70. Rxh7+ {[%emt 0:00:19]} Kg5 {[%emt 0:00:02]} 71. Rh1 {[%emt 0:00:09]} Kf6 {[%emt 0:00:28]} 72. Bd5 {[%emt 0:00:20]} Re5+ {[%emt 0:00:22]} 73. Kd4 {[%emt 0:00:03]} Rg5 {[%emt 0:00:37]} 74. Ra1 {[%emt 0:00:15]} Kg7 {[%emt 0:00:17]} 75. Ra7+ {[%emt 0:00:16]} Kh6 {[%emt 0:00:04]} 76. Bg8 {[%emt 0:00:10]} Rb5 {[%emt 0:00:22]} 77. Ra6 {[%emt 0:00:20]} Kg7 {[%emt 0:00:15]} 78. Bd5 {[%emt 0:00:24]} Rb2 {[%emt 0:00:20]} 79. Be4 {[%emt 0:00:15]} Rb4+ {[%emt 0:00:14]} 80. Ke3 {[%emt 0:00:24]} Kf7 {[%emt 0:00:35]} 81. Bxg6+ {[%emt 0:00:11]} Ke7 {[%emt 0:00:06]} 82. Be4 {[%emt 0:00:07]} Kf7 {[%emt 0:00:22]} 83. Kf4 {[%emt 0:00:12]} Ke7 {[%emt 0:00:16]} 84. Ke5 {[%emt 0:00:06]} Kf7 {[%emt 0:00:19]} 85. Ra7+ {[%emt 0:00:03]} Kf8 {[%emt 0:00:22]} 86. Bf5 {[%emt 0:00:09]} Rb2 {[%emt 0:00:49]} 87. Kf6 {[%emt 0:00:05]} Re2 {[%emt 0:01:25]} 88. Rf7+ {[%emt 0:02:00]} Ke8 {[%emt 0:01:23]} 89. Rh7 {[%emt 0:01:35]} Kd8 {[%emt 0:00:22]} 90. Rd7+ {[%emt 0:00:08]} Ke8 {[%emt 0:00:10]} 91. Rd4 {[%emt 0:00:46]} Kf8 {[%emt 0:01:45]} 92. Rh4 {[%emt 0:00:04]} Rg2 {[%emt 0:00:35]} 93. Rh1 {[%emt 0:01:00]} Rg3 {[%emt 0:00:13]} 94. Rh4 {[%emt 0:01:52]} Rg1 {[%emt 0:00:19]} 95. Rd4 {[%emt 0:00:54]} Re1 {[%emt 0:00:16]} 96. Bd3 {[%emt 0:00:07]} Re3 {[%emt 0:00:50]} 97. Be4 {[%emt 0:00:28]} Re1 {[%emt 0:01:36]} 98. Bd5 {[%emt 0:00:01]} Re2 {[%emt 0:00:02]} 99. Be4 Re3 {[%emt 0:00:02]} 100. Bd3 1-0

[Event "SWE-ch 65 2019"]
[Site "Eskilstuna"]
[Date "2019.07.10"]
[Round "5.2"]
[White "Gillefalk, Bjorn"]
[Black "Alquist, Erik"]
[Result "1/2-1/2"]
[ECO "B44"]
[WhiteElo "2071"]
[BlackElo "1976"]
[Annotator "NA"]
[PlyCount "66"]
[EventDate "2019.07.06"]
[EventType "tourn"]
[EventCountry "SWE"]
[SourceTitle "playchess.com"]
[Source "ChessBase"]
[SourceQuality "1"]
[TimeControl "40/5400+30:1800+30"]

1. e4 {[%emt 0:00:00]} c5 {[%emt 0:00:00]} 2. Nf3 {[%emt 0:00:00]} e6 {[%emt 0:00:00]} 3. d4 {[%emt 0:02:40]} cxd4 {[%emt 0:00:01]} 4. Nxd4 {[%emt 0:00:01]} Nc6 {[%emt 0:00:18]} 5. Nb5 {[%emt 0:07:48]} d6 {[%emt 0:00:16]} 6. c4 {[%emt 0:00:05]} Nf6 {[%emt 0:00:25]} 7. N1c3 {[%emt 0:04:38]} a6 {[%emt 0:00:16]} 8. Nd4 {[%emt 0:03:16]} Be7 {[%emt 0:01:29]} 9. Be2 {[%emt 0:01:41]} Qc7 {[%emt 0:02:58]} 10. Be3 {[%emt 0:01:24]} O-O {[%emt 0:02:12]} 11. O-O {[%emt 0:03:23]} Ne5 {[%emt 0:01:38]} 12. Rc1 {[%emt 0:01:20]} b6 {[%emt 0:03:13]} 13. f4 {[%emt 0:05:49]} Ned7 {[%emt 0:00:09]} 14. f5 {[%emt 0:01:39]} Nc5 {[%emt 0:10:29]} 15. Bf3 {[%emt 0:05:05]} e5 {[%emt 0:01:07]} 16. Nde2 {[%emt 0:03:23]} Bb7 {[%emt 0:01:55]} 17. Nd5 {[%emt 0:13:40]} Nxd5 {[%emt 0:01:23]} 18. cxd5 {[%emt 0:02:27]} Qd8 {[%emt 0:01:03]} 19. Qd2 {[%emt 0:05:12]} Rc8 {[%emt 0:01:25]} 20. Rc2 {[%emt 0:06:37]} a5 {[%emt 0:02:27]} 21. Nc3 {[%emt 0:01:43]} Ba6 {[%emt 0:02:48]} 22. Be2 {[%emt 0:00:51]} Bxe2 {[%emt 0:04:44]} 23. Qxe2 {[%emt 0:01:45]} Bg5 {[%emt 0:01:27]} 24. Rfc1 {[%emt 0:09:04]} Bxe3+ {[%emt 0:05:55]} 25. Qxe3 {[%emt 0:00:03]} Ra8 {[%emt 0:03:18]} 26. b3 {[%emt 0:03:14]} h6 {[%emt 0:07:02]} 27. Rf1 {[%emt 0:01:49]} Qg5 {[%emt 0:01:06]} 28. Qe2 {[%emt 0:01:41]} Kh7 {[%emt 0:01:38]} 29. Nb5 {[%emt 0:01:16]} Rfd8 {[%emt 0:01:36]} 30. Rc3 {[%emt 0:00:28]} Qh4 {[%emt 0:03:30]} 31. Re3 {[%emt 0:01:20]} Rd7 {[%emt 0:03:29]} 32. f6 {[%emt 0:02:05]} Rg8 {[%emt 0:04:19]} 33. g3 {[%emt 0:06:43]} gxf6 {[%emt 0:03:26]} 1/2-1/2

[Event "SWE-ch 65 2019"]
[Site "Eskilstuna"]
[Date "2019.07.10"]
[Round "5.3"]
[White "Blomstrom, Lars"]
[Black "Wademark, Helge"]
[Result "1/2-1/2"]
[ECO "C11"]
[WhiteElo "2153"]
[BlackElo "2002"]
[Annotator "NA"]
[PlyCount "57"]
[EventDate "2019.07.06"]
[EventType "tourn"]
[EventCountry "SWE"]
[SourceTitle "playchess.com"]
[Source "ChessBase"]
[SourceQuality "1"]
[TimeControl "40/5400+30:1800+30"]

1. e4 {[%emt 0:00:00]} e6 {[%emt 0:00:00]} 2. d4 {[%emt 0:00:00]} d5 {[%emt 0:00:00]} 3. Nc3 {[%emt 0:00:02]} Nf6 {[%emt 0:00:00]} 4. e5 {[%emt 0:00:41]} Nfd7 {[%emt 0:00:00]} 5. f4 {[%emt 0:00:07]} c5 {[%emt 0:00:10]} 6. Nf3 {[%emt 0:00:06]} Nc6 {[%emt 0:00:04]} 7. Be3 {[%emt 0:00:10]} Qb6 {[%emt 0:05:31]} 8. Na4 {[%emt 0:00:12]} Qa5+ {[%emt 0:01:50]} 9. c3 {[%emt 0:00:03]} cxd4 {[%emt 0:00:13]} 10. b4 {[%emt 0:00:02]} Qc7 {[%emt 0:00:16]} 11. Nxd4 {[%emt 0:09:00]} a6 {[%emt 0:09:29]} 12. Rc1 {[%emt 0:18:18]} b5 {[%emt 0:06:54]} 13. Nb2 {[%emt 0:14:59]} Nb6 {[%emt 0:02:23]} 14. Bd3 {[%emt 0:06:44]} Nc4 {[%emt 0:05:06]} 15. Nxc4 {[%emt 0:05:19]} dxc4 {[%emt 0:01:20]} 16. Be4 {[%emt 0:00:50]} Bb7 {[%emt 0:00:04]} 17. Qf3 {[%emt 0:05:33]} Nxd4 {[%emt 0:06:39]} 18. Bxd4 {[%emt 0:00:06]} Bxe4 {[%emt 0:00:07]} 19. Qxe4 {[%emt 0:00:13]} Rd8 {[%emt 0:00:09]} 20. O-O {[%emt 0:00:31]} g6 {[%emt 0:01:43]} 21. Rcd1 {[%emt 0:08:02]} Be7 {[%emt 0:01:39]} 22. Qe3 {[%emt 0:06:17]} Qc6 {[%emt 0:02:17]} 23. Rd2 {[%emt 0:07:54]} O-O {[%emt 0:06:21]} 24. g4 {[%emt 0:02:43]} f5 {[%emt 0:02:56]} 25. exf6 {[%emt 0:01:15]} Bxf6 {[%emt 0:00:47]} 26. Bxf6 {[%emt 0:09:14]} Rxd2 {[%emt 0:03:27]} 27. Qxd2 {[%emt 0:00:03]} Rxf6 {[%emt 0:00:15]} 28. Qe3 {[%emt 0:02:36]} Qd6 {[%emt 0:04:09]} 29. Qe5 {[%emt 0:00:29]} 1/2-1/2